bitfinex/quotes_SOLUSD_20240708
["timestamp","ask_amount","ask_price","bid_price","bid_amount"]
[1720464112994,6.0561,138.1,138.06,7.243]
[1720464113692,6.0561,138.1,138.05,7.292]
[1720464115703,13.2973,138.1,138.05,7.292]
[1720464116018,6.0561,138.1,138.05,7.292]
[1720464116203,13.2972,138.1,138.05,7.292]
[1720464116502,6.0561,138.1,138.05,7.292]
[1720464116707,6.0561,138.1,138.05,14.5356]
[1720464117092,6.0561,138.1,138.06,7.2432]
[1720464117719,6.0561,138.1,138.05,14.5355]
[1720464119020,6.0561,138.1,138.05,7.292]
[1720464119610,7.242,138.09,138.05,7.292]
[1720464120313,13.2974,138.1,138.04,7.292]
[1720464121103,6.0561,138.1,138.04,7.292]
[1720464121330,20.17,138.09,138.03,7.292]
[1720464121805,7.2422,138.08,138.03,7.292]
[1720464122005,20.0,138.07,138.03,7.292]
[1720464123110,0.17,138.09,138.04,7.292]
[1720464123111,7.4118,138.09,138.04,7.292]
[1720464123414,20.0,138.08,138.04,7.292]
[1720464123617,7.2431,138.07,138.04,7.292]
[1720464123795,7.2423,138.08,138.04,7.292]
[1720464123999,20.0,138.07,138.04,7.292]
[1720464124518,13.63877389,138.1,138.04,7.292]
[1720464124725,6.0561,138.1,138.06,7.2428]
[1720464124907,6.0561,138.1,138.07,7.2424]
[1720464125104,6.0561,138.1,138.06,18.1079]
[1720464125417,6.0561,138.1,138.06,25.3509]
[1720464125606,6.0561,138.1,138.05,7.292]
[1720464126335,13.2973,138.1,138.04,7.292]
[1720464126701,6.0561,138.1,138.05,14.5356]
[1720464127200,6.0561,138.1,138.05,14.5355]
[1720464127520,6.0561,138.1,138.05,7.292]
[1720464127722,13.2972,138.1,138.05,7.292]
[1720464127904,6.0561,138.1,138.05,7.292]
[1720464128110,6.0561,138.1,138.05,14.5356]
[1720464128623,6.0561,138.1,138.04,7.292]
[1720464128916,6.0561,138.1,138.04,14.5361]
[1720464129222,6.0561,138.1,138.05,14.5357]
[1720464130411,6.0561,138.1,138.06,7.2431]
[1720464131207,6.0561,138.1,138.05,7.292]
[1720464131729,13.2973,138.1,138.05,7.292]
[1720464131912,7.2419,138.09,138.05,7.292]
[1720464132437,6.0561,138.1,138.05,7.292]
[1720464133230,6.0561,138.1,138.05,14.5356]
[1720464133396,27.4118,138.09,138.05,7.292]
[1720464133949,20.17,138.09,138.05,7.292]
[1720464134531,20.17,138.09,138.04,7.292]
[1720464134737,20.0,138.09,138.04,7.292]
[1720464135038,20.0,138.09,138.04,14.5359]
[1720464135332,20.0,138.09,138.05,14.5356]
[1720464136249,20.0,138.09,138.05,7.292]
[1720464136803,27.2417,138.09,138.05,7.292]
[1720464137732,20.0,138.09,138.05,7.292]
[1720464138538,20.0,138.09,138.02,7.292]
[1720464138707,7.2429,138.07,138.02,7.292]
[1720464138900,0.17,138.08,138.02,7.292]
[1720464138901,7.2433,138.06,138.02,7.292]
[1720464139316,0.17,138.08,138.0,7.2461]
[1720464139317,7.2429,138.07,138.0,25.3619]
[1720464139598,20.0,138.06,138.01,7.2457]
[1720464139802,20.0,138.06,138.0,25.3619]
[1720464140004,7.2445,138.04,137.97,25.3664]
[1720464140439,7.2445,138.04,137.98,7.2473]
[1720464140609,28.8511,138.05,137.97,18.1189]
[1720464140931,27.2444,138.04,137.97,25.3667]
[1720464141307,20.0,138.04,137.99,18.117]
[1720464141509,20.0,138.04,137.99,25.3634]
[1720464142833,20.0,138.04,137.99,25.377]
[1720464143634,20.0,138.04,137.99,32.6235]
[1720464144941,20.0,138.04,137.99,7.26]
[1720464145321,27.2447,138.04,137.99,7.26]
[1720464145633,27.2444,138.04,137.99,7.26]
[1720464146442,27.2444,138.04,137.98,7.26]
[1720464146619,7.245,138.03,137.98,7.26]
[1720464147730,7.2456,138.02,137.99,7.26]
[1720464148650,7.2449,138.03,137.99,7.26]
[1720464148845,7.2453,138.02,137.99,7.26]
[1720464149148,7.2462,138.01,137.99,7.26]
[1720464149322,27.2462,138.01,137.99,7.26]
[1720464150229,7.2463,138.0,137.99,7.26]
[1720464150428,49.2938,138.0,137.99,7.26]
[1720464150743,42.0475,138.0,137.95,14.5086]
[1720464151040,42.0475,138.0,137.94,18.1238]
[1720464151041,41.8775,138.0,137.99,7.26]
[1720464153932,42.0475,138.0,137.99,7.26]
[1720464154151,42.0475,138.0,137.96,7.26]
[1720464155062,41.8775,138.0,137.96,7.26]
[1720464155944,49.46424108,138.0,137.96,7.26]
[1720464156131,7.2469,137.99,137.94,7.26]
[1720464156340,27.2469,137.99,137.94,7.26]
[1720464156647,0.17,137.98,137.94,7.26]
[1720464157045,7.4177,137.98,137.94,7.26]
[1720464157250,7.4177,137.98,137.92,7.26]
[1720464157460,7.4177,137.98,137.92,14.5105]
[1720464157840,0.17,137.98,137.92,14.5105]
[1720464158334,0.17,137.98,137.93,14.5099]
[1720464159257,0.17,137.98,137.93,7.26]
[1720464161473,0.17,137.98,137.93,14.51]
[1720464162160,7.4174,137.98,137.93,7.26]
[1720464162347,20.0,137.97,137.94,7.26]
[1720464163251,0.17,137.96,137.95,7.26]
[1720464164355,0.17,137.96,137.92,7.26]
[1720464165234,20.0,137.97,137.91,18.1276]
[1720464165452,20.0,137.98,137.91,18.1276]
[1720464165664,20.0,137.98,137.93,7.2498]
[1720464166172,27.58007571,137.98,137.93,7.2498]
[1720464166845,0.17,137.97,137.93,7.2498]
[1720464167053,0.17,137.97,137.92,7.2503]
[1720464167753,7.58007571,137.98,137.95,7.2486]
[1720464167949,21.8775,138.0,137.95,7.2486]
[1720464168152,0.17,137.99,137.93,25.3745]
[1720464168477,0.17,137.99,137.94,7.2494]
[1720464168759,9.19,137.96,137.9,18.1278]
[1720464168952,9.19,137.95,137.9,27.3178]
[1720464169147,0.34,137.99,137.9,25.3792]
[1720464169148,9.19,137.94,137.9,25.3792]
[1720464169466,9.19,137.93,137.9,25.3792]
[1720464169651,9.19,137.93,137.88,9.19]
[1720464169849,7.251,137.92,137.84,36.2735]
[1720464170054,9.19,137.89,137.84,45.4635]
[1720464170258,9.19,137.9,137.86,18.1339]
[1720464171149,23.0409,137.94,137.88,9.19]
[1720464171447,32.2309,137.94,137.89,25.3813]
[1720464171649,9.19,137.92,137.89,25.3813]
[1720464171863,9.19,137.93,137.9,7.2514]
[1720464172069,6.3623,137.97,137.92,18.1258]
[1720464172364,9.19,137.96,137.92,18.1258]
[1720464172556,6.3623,137.97,137.92,25.376]
[1720464172753,6.3623,137.97,137.93,7.25]
[1720464172957,6.3623,137.97,137.94,18.1235]
[1720464173164,6.3623,137.97,137.94,25.3729]
[1720464173561,6.3623,137.97,137.92,7.2501]
[1720464173762,6.3623,137.97,137.91,25.3774]
[1720464173957,6.3623,137.97,137.92,7.2505]
[1720464174272,6.3623,137.97,137.93,7.2499]
[1720464174453,6.3623,137.97,137.94,7.2494]
[1720464174771,6.3623,137.97,137.93,25.3747]
[1720464175067,15.4411,137.98,137.9,36.2564]
[1720464175270,29.23630347,138.0,137.95,18.122]
[1720464175271,7.58025034,138.0,137.95,18.122]
[1720464175569,7.58025034,138.0,137.97,7.2477]
[1720464175765,7.58025034,138.0,137.96,7.2482]
[1720464176368,7.58025034,138.0,137.99,7.2469]
[1720464176554,22.1301,138.05,138.0,18.1155]
[1720464176755,22.1301,138.05,138.02,7.2452]
[1720464176959,22.1301,138.05,137.96,36.2404]
[1720464177273,22.1301,138.05,138.01,7.2457]
[1720464177450,22.1301,138.05,138.0,7.2461]
[1720464177974,22.1301,138.05,138.01,7.2458]
[1720464178473,22.1301,138.05,137.99,25.3628]
[1720464178674,22.1301,138.05,138.0,7.2463]
[1720464179181,22.1301,138.05,138.01,7.2458]
[1720464179375,22.1301,138.05,138.03,18.111]
[1720464179557,22.1301,138.05,138.02,7.2452]
[1720464179757,22.1301,138.05,138.01,7.2457]
[1720464180077,22.1301,138.05,138.0,25.3611]
[1720464180376,0.17,138.04,137.96,36.2404]
[1720464180586,20.17,138.04,137.91,31.5208585]
[1720464180755,6.5496,138.02,137.9,36.2564]
[1720464180962,15.9827,138.0,137.92,18.1254]
[1720464181162,7.248,137.97,137.9,7.2514]
[1720464181387,0.17,137.96,137.9,7.2511]
[1720464181691,0.17,137.96,137.89,18.1294]
[1720464181692,6.3542,137.95,137.89,18.1294]
[1720464181998,6.3542,137.95,137.92,7.2505]
[1720464182690,6.3542,137.95,137.93,18.1248]
[1720464182985,6.3542,137.95,137.94,7.2495]
[1720464183397,15.9827,138.0,137.95,7.2489]
[1720464183398,6.1566,137.98,137.95,7.2489]
[1720464183564,20.0,137.97,137.95,7.2489]
[1720464183767,20.0,137.97,137.94,7.2493]
[1720464184068,20.0,137.97,137.95,7.2489]
[1720464184274,15.9827,138.0,137.95,25.3705]
[1720464185088,15.9827,138.0,137.89,218.39]
[1720464185089,15.9827,138.0,137.92,18.1258]
[1720464185319,7.247,137.99,137.92,25.3759]
[1720464185475,0.17,137.97,137.89,18.1296]
[1720464185673,0.17,137.97,137.88,36.2614]
[1720464185890,0.17,137.97,137.91,25.378]
[1720464186103,20.0,137.98,137.93,7.2497]
[1720464186286,20.0,137.98,137.93,18.1247]
[1720464186691,0.17,137.97,137.93,18.1247]
[1720464188015,0.34,137.97,137.91,7.251]
[1720464188179,7.2484,137.96,137.84,13.0797]
[1720464188380,0.17,137.97,137.85,156.2693]
[1720464188583,0.34,137.97,137.91,7.251]
[1720464188801,0.17,137.97,137.91,7.251]
[1720464189007,0.17,137.97,137.93,7.2499]
[1720464189313,0.17,137.97,137.91,18.1273]
[1720464189698,0.17,137.97,137.92,7.2504]
[1720464190303,29.0075,137.96,137.88,18.1307]
[1720464190506,0.17,137.95,137.88,18.1307]
[1720464190709,20.17,137.95,137.89,7.2518]
[1720464191326,20.17,137.95,137.9,7.2515]
[1720464191483,20.17,137.95,137.89,7.2519]
[1720464191887,20.0,137.95,137.91,18.1275]
[1720464192538,20.0,137.95,137.87,18.1322]
[1720464192703,0.17,137.94,137.9,7.2515]
[1720464193025,20.0,137.95,137.9,7.2515]
[1720464193223,20.0,137.95,137.89,25.3818]
[1720464194036,20.0,137.95,137.9,7.2515]
[1720464194247,20.0,137.95,137.87,7.2526]
[1720464194248,0.17,137.94,137.87,7.2526]
[1720464194409,18.73,137.94,137.86,18.1334]
[1720464194612,27.2501,137.93,137.86,25.387]
[1720464194810,0.17,137.92,137.87,7.2531]
[1720464195012,22.8229,137.9,137.83,18.1381]
[1720464195211,20.17,137.89,137.82,7.2554]
[1720464195439,7.2527,137.88,137.82,7.2554]
[1720464195606,20.17,137.87,137.82,7.2554]
[1720464196017,20.17,137.87,137.81,7.2561]
[1720464196240,20.17,137.87,137.82,7.2558]
[1720464196535,20.17,137.87,137.83,7.2551]
[1720464196737,20.0,137.86,137.83,7.2551]
[1720464197037,0.17,137.87,137.83,7.2551]
[1720464197213,0.17,137.88,137.83,7.2551]
[1720464197720,0.17,137.88,137.82,18.1391]
[1720464198023,7.423,137.88,137.82,18.1391]
[1720464198221,20.0,137.87,137.82,18.1391]
[1720464198827,20.17,137.88,137.84,18.1364]
[1720464199919,20.17,137.88,137.83,7.2551]
[1720464200646,27.4228,137.88,137.81,18.1398]
[1720464201448,27.4228,137.88,137.81,25.3958]
[1720464201647,27.4228,137.88,137.82,7.2557]
[1720464201849,27.4228,137.88,137.81,25.396]
[1720464202938,7.2532,137.87,137.81,25.396]
[1720464203144,20.17,137.86,137.81,25.396]
[1720464203359,20.17,137.86,137.76,36.2943]
[1720464203517,21.2735,137.84,137.73,100.0]
[1720464203838,21.2735,137.84,137.76,7.2585]
[1720464203839,27.4255,137.83,137.76,7.2585]
[1720464204051,20.17,137.83,137.77,7.2579]
[1720464204224,27.4256,137.83,137.76,7.2588]
[1720464204414,18.39,137.8,137.74,7.2597]
[1720464204727,20.17,137.79,137.74,7.2597]
[1720464205562,20.0,137.79,137.71,36.306]
[1720464205847,20.0,137.8,137.77,7.2581]
[1720464206221,23.2206,137.81,137.78,18.1441]
[1720464206750,20.0,137.8,137.74,7.2597]
[1720464206930,27.2569,137.8,137.73,7.2604]
[1720464207127,20.0,137.8,137.74,7.26]
[1720464207362,20.0,137.8,137.74,18.1496]
[1720464207532,20.0,137.8,137.74,25.4092]
[1720464207733,20.0,137.8,137.74,18.1496]
[1720464207967,20.0,137.8,137.75,7.2591]
[1720464208331,20.0,137.8,137.75,7.2594]
[1720464208760,20.0,137.8,137.74,18.1496]
[1720464208953,0.17,137.79,137.74,18.1496]
[1720464209633,0.34,137.79,137.71,18.1531]
[1720464209936,0.17,137.79,137.74,7.26]
[1720464210149,7.4275,137.79,137.73,18.151]
[1720464210454,20.0,137.78,137.68,36.3151]
[1720464210653,0.17,137.77,137.71,25.4151]
[1720464210955,0.17,137.77,137.71,18.1537]
[1720464210956,27.4286,137.77,137.71,18.1537]
[1720464211160,22.3866,137.76,137.7,7.2621]
[1720464211340,0.17,137.75,137.7,7.2621]
[1720464211539,0.17,137.75,137.68,54.4725]
[1720464211540,0.17,137.75,137.69,7.2625]
[1720464212758,7.5996,137.75,137.68,7.2631]
[1720464212939,27.26,137.74,137.67,25.4222]
[1720464213143,0.17,137.73,137.67,25.4223]
[1720464213354,20.17,137.73,137.67,25.4223]
[1720464215150,20.17,137.73,137.68,7.2631]
[1720464215353,0.17,137.73,137.68,7.2631]
[1720464215666,7.4305,137.73,137.67,18.1587]
[1720464215967,20.0,137.72,137.67,18.1587]
[1720464216172,6.1773,137.7,137.64,18.1624]
[1720464216968,0.17,137.69,137.65,7.2644]
[1720464217144,16.2744,137.69,137.65,7.2644]
[1720464217559,16.2744,137.69,137.66,7.2642]
[1720464217949,16.2744,137.69,137.64,18.1624]
[1720464218482,16.2744,137.69,137.65,7.2647]
[1720464219171,16.2744,137.69,137.64,25.4276]
[1720464220055,16.2744,137.69,137.64,18.1624]
[1720464220256,16.2744,137.69,137.66,7.2641]
[1720464220446,16.2744,137.69,137.64,18.1624]
[1720464221382,0.17,137.68,137.63,7.2654]
[1720464221674,20.17,137.68,137.63,7.2654]
[1720464221855,0.17,137.67,137.63,7.2654]
[1720464223484,0.17,137.67,137.62,7.2661]
[1720464224756,0.17,137.67,137.63,7.2658]
[1720464225379,0.17,137.67,137.64,7.2652]
[1720464226563,0.17,137.67,137.64,7.2651]
[1720464227367,20.0,137.68,137.66,7.2642]
[1720464227874,20.0,137.68,137.65,25.4264]
[1720464228261,20.0,137.68,137.64,7.2651]
[1720464228459,20.0,137.68,137.63,7.2656]
[1720464228770,0.17,137.67,137.62,25.431]
[1720464229580,0.34,137.67,137.62,25.431]
[1720464230666,0.34,137.67,137.63,7.2657]
[1720464230871,0.34,137.67,137.64,7.2651]
[1720464230872,0.17,137.67,137.64,7.2651]
[1720464231470,0.34,137.67,137.62,25.431]
[1720464232184,0.34,137.67,137.6,7.2671]
[1720464232185,7.6039,137.67,137.6,7.2671]
[1720464232485,20.0,137.66,137.6,7.2671]
[1720464232696,0.17,137.65,137.6,7.2671]
[1720464233089,0.17,137.65,137.61,7.2667]
[1720464233471,20.0,137.66,137.65,7.2648]
[1720464233778,6.45,137.68,137.64,7.2651]
[1720464233991,6.45,137.68,137.63,25.4299]
[1720464234786,0.17,137.67,137.63,25.4299]
[1720464234975,20.17,137.67,137.65,7.2647]
[1720464235171,20.0,137.67,137.65,7.2647]
[1720464235372,20.0,137.67,137.63,18.1642]
[1720464235587,20.0,137.67,137.63,25.4297]
[1720464236161,20.0,137.67,137.61,7.2665]
[1720464236363,20.0,137.67,137.62,7.2659]
[1720464236571,20.0,137.67,137.63,7.2658]
[1720464236959,20.0,137.67,137.64,7.2652]
[1720464237782,20.0,137.67,137.64,18.163]
[1720464238382,20.0,137.67,137.65,7.2646]
[1720464238690,20.0,137.67,137.64,18.163]
[1720464238985,20.0,137.67,137.62,7.266]
[1720464239368,0.17,137.66,137.62,7.266]
[1720464239765,20.0,137.67,137.63,18.1639]
[1720464240383,20.0,137.67,137.64,7.265]
[1720464240973,20.0,137.67,137.6,18.1673]
[1720464241163,0.17,137.66,137.62,7.2663]
[1720464241972,0.17,137.66,137.62,25.4321]
[1720464242696,0.17,137.66,137.63,7.2656]
[1720464242880,20.0,137.67,137.64,18.1628]
[1720464243288,20.0,137.67,137.66,7.2642]
[1720464243497,20.0,137.67,137.61,18.166]
[1720464243669,20.0,137.67,137.63,7.2656]
[1720464243870,20.0,137.67,137.62,7.2662]
[1720464244285,0.17,137.66,137.62,7.2662]
[1720464244492,0.34,137.66,137.61,25.4328]
[1720464244672,20.0,137.67,137.64,7.2652]
[1720464244872,20.0,137.67,137.63,7.2656]
[1720464245078,20.0,137.67,137.64,7.2653]
[1720464245286,20.0,137.67,137.63,7.2658]
[1720464245490,20.0,137.67,137.64,18.1629]
[1720464245682,20.0,137.67,137.64,25.428]
[1720464246001,20.0,137.67,137.64,18.1629]
[1720464246191,20.0,137.67,137.62,7.2662]
[1720464246494,0.17,137.66,137.62,7.2662]
[1720464247077,0.17,137.66,137.63,7.2657]
[1720464247770,0.17,137.66,137.62,7.2661]
[1720464248519,0.17,137.66,137.63,7.2657]
[1720464249192,0.17,137.66,137.62,7.2661]
[1720464249394,0.17,137.66,137.61,25.4327]
[1720464249589,0.17,137.66,137.62,7.2662]
[1720464249794,20.0,137.67,137.63,7.2656]
[1720464250205,20.0,137.67,137.62,25.4308]
[1720464251102,0.17,137.66,137.62,25.4308]
[1720464251277,20.0,137.67,137.62,25.4308]
[1720464251794,20.0,137.67,137.63,7.2657]
[1720464252284,20.0,137.67,137.64,7.2651]
[1720464252487,20.0,137.67,137.63,7.2656]
[1720464253405,20.0,137.67,137.62,25.4308]
[1720464253803,0.17,137.66,137.61,7.2666]
[1720464254002,0.34,137.66,137.61,7.2666]
[1720464255383,7.6043,137.66,137.6,25.4357]
[1720464255590,20.0,137.65,137.6,25.4357]
[1720464256199,0.17,137.63,137.58,7.268]
[1720464256406,46.0758,137.63,137.56,7.2693]
[1720464256614,46.0758,137.63,137.57,7.2685]
[1720464256615,38.64,137.63,137.57,7.2685]
[1720464256902,38.64,137.63,137.56,18.1738]
[1720464256903,38.64,137.63,137.58,7.2684]
[1720464257292,7.4364,137.62,137.56,25.4433]
[1720464257506,20.0,137.61,137.56,18.1738]
[1720464257682,38.64,137.63,137.56,18.1738]
[1720464258405,38.64,137.63,137.57,7.2688]
[1720464258793,45.9059,137.63,137.57,7.2688]
[1720464259709,0.17,137.62,137.54,18.1765]
[1720464260006,7.2673,137.61,137.54,25.4468]
[1720464260207,20.17,137.6,137.55,7.2699]
[1720464261589,0.17,137.6,137.55,7.2699]
[1720464262008,0.17,137.6,137.56,7.2694]
[1720464262688,0.17,137.6,137.55,7.2699]
[1720464262878,0.17,137.6,137.54,18.1765]
[1720464262879,20.0,137.61,137.56,7.2694]
[1720464263084,20.0,137.61,137.56,18.1736]
[1720464263286,20.0,137.62,137.56,25.4429]
[1720464263796,0.17,137.61,137.56,18.1736]
[1720464264000,7.4369,137.61,137.55,7.2699]
[1720464264197,20.0,137.6,137.55,7.2699]
[1720464265704,27.2674,137.6,137.54,7.2704]
[1720464265906,20.0,137.6,137.54,7.2704]
[1720464266287,20.0,137.6,137.55,7.2699]
[1720464267612,22.4678,137.59,137.54,7.2705]
[1720464267815,20.0,137.58,137.54,7.2705]
[1720464268190,20.0,137.58,137.53,25.4472]
[1720464268392,27.2687,137.58,137.52,7.2715]
[1720464268607,0.17,137.57,137.52,7.2715]
[1720464269687,0.17,137.57,137.48,54.5501]
[1720464269688,0.34,137.57,137.48,54.5501]
[1720464270115,7.2703,137.55,137.49,7.2729]
[1720464270413,22.6681,137.54,137.49,7.2732]
[1720464270789,22.6681,137.54,137.48,54.5501]
[1720464270790,22.6681,137.54,137.48,25.457]
[1720464270986,0.17,137.52,137.47,7.2742]
[1720464271594,0.17,137.52,137.47,25.4598]
[1720464271798,0.17,137.52,137.48,7.2737]
[1720464272096,0.17,137.52,137.47,25.4598]
[1720464272300,0.17,137.52,137.44,18.1895]
[1720464272504,0.17,137.52,137.42,0.17]
[1720464273014,0.17,137.52,137.47,7.2742]
[1720464273701,0.34,137.52,137.47,7.2742]
[1720464273900,22.7238,137.51,137.46,25.4612]
[1720464274095,0.17,137.5,137.46,25.4612]
[1720464274301,0.17,137.5,137.43,18.19]
[1720464274495,20.17,137.5,137.44,7.2758]
[1720464274700,20.17,137.5,137.46,7.2748]
[1720464274900,20.17,137.5,137.47,7.2738]
[1720464275122,20.0,137.5,137.48,7.2735]
[1720464275322,22.7238,137.51,137.49,7.2732]
[1720464275525,22.7238,137.51,137.47,18.1851]
[1720464275697,20.0,137.5,137.47,18.1851]
[1720464276098,20.0,137.5,137.48,7.2737]
[1720464277210,20.0,137.5,137.47,25.4593]
[1720464277407,20.0,137.5,137.46,7.2747]
[1720464277608,0.17,137.49,137.46,7.2747]
[1720464278130,0.17,137.49,137.45,7.2753]
[1720464278424,0.17,137.49,137.46,7.2746]
[1720464279611,0.17,137.49,137.44,18.1886]
[1720464280099,0.17,137.49,137.46,7.2745]
[1720464280601,0.17,137.49,137.47,7.2743]
[1720464281016,0.17,137.49,137.46,25.4615]
[1720464282025,0.34,137.49,137.43,18.19]
[1720464282235,7.2738,137.48,137.42,7.2767]
[1720464282444,20.17,137.47,137.42,7.2767]
[1720464283110,0.17,137.47,137.42,7.2767]
[1720464283310,0.17,137.47,137.43,7.2762]
[1720464284216,20.0,137.48,137.44,18.1894]
[1720464284426,41.1938,137.51,137.46,18.1863]
[1720464284427,20.0,137.5,137.46,18.1863]
[1720464284736,22.7238,137.51,137.46,18.1863]
[1720464285114,22.7238,137.51,137.47,7.2742]
[1720464285624,22.7238,137.51,137.44,7.2758]
[1720464286144,20.0,137.5,137.44,7.2758]
[1720464286643,0.17,137.49,137.44,7.2758]
[1720464286811,0.34,137.49,137.44,7.2758]
[1720464287651,20.0,137.5,137.43,36.3801]
[1720464288232,22.7238,137.51,137.49,7.2727]
[1720464288427,22.7238,137.51,137.48,7.2736]
[1720464288616,22.7238,137.51,137.46,18.1861]
[1720464288812,22.7238,137.51,137.47,7.2741]
[1720464289144,22.7238,137.51,137.46,18.1861]
[1720464289342,0.17,137.5,137.46,18.1861]
[1720464289512,0.34,137.5,137.46,18.1861]
[1720464290057,0.34,137.5,137.45,7.275]
[1720464291215,0.34,137.5,137.44,7.2756]
[1720464291216,27.6128,137.5,137.44,7.2756]
[1720464291414,27.6128,137.5,137.41,7.2773]
[1720464291415,7.2741,137.48,137.41,7.2773]
[1720464291626,22.3276,137.46,137.42,7.2769]
[1720464292344,0.17,137.45,137.41,7.2773]
[1720464292550,0.17,137.45,137.4,18.1941]
[1720464292551,0.34,137.45,137.4,18.1941]
[1720464292925,0.34,137.45,137.4,25.4718]
[1720464293134,0.34,137.45,137.36,36.3999]
[1720464293135,27.6157,137.45,137.38,7.2787]
[1720464293345,27.6155,137.45,137.39,7.2784]
[1720464293539,20.34,137.45,137.39,7.2784]
[1720464293727,27.6154,137.45,137.39,25.4743]
[1720464293925,27.6155,137.45,137.39,18.1959]
[1720464294121,27.6155,137.45,137.39,25.4743]
[1720464295138,27.6155,137.45,137.39,18.1959]
[1720464295334,0.17,137.43,137.37,7.2795]
[1720464295545,20.34,137.43,137.37,7.2795]
[1720464295735,27.6164,137.43,137.37,7.2795]
[1720464295948,20.34,137.43,137.37,7.2795]
[1720464296537,20.0,137.43,137.34,136.4039]
[1720464296742,22.3276,137.46,137.34,136.4039]
[1720464296743,20.0,137.45,137.4,7.2778]
[1720464297047,20.0,137.45,137.4,25.4723]
[1720464297248,20.0,137.45,137.4,18.1945]
[1720464297464,27.2755,137.45,137.38,7.279]
[1720464297640,20.0,137.45,137.39,18.196]
[1720464297837,20.0,137.45,137.34,36.4039]
[1720464298042,0.17,137.44,137.34,136.4039]
[1720464298251,20.0,137.45,137.42,18.1918]
[1720464298453,22.3276,137.46,137.38,18.47]
[1720464298764,22.3276,137.46,137.45,25.4637]
[1720464299056,5.71845656,137.51,137.45,25.4637]
[1720464299057,15.5592,137.5,137.47,7.2738]
[1720464299747,15.5592,137.5,137.45,25.4632]
[1720464300340,27.2734,137.49,137.42,25.4684]
[1720464300539,13.8584,137.48,137.42,18.1916]
[1720464300848,13.8584,137.48,137.4,36.3882]
[1720464300849,7.4443,137.47,137.4,7.2778]
[1720464301048,0.17,137.47,137.42,7.2769]
[1720464301446,20.17,137.47,137.41,18.1934]
[1720464301963,20.17,137.47,137.4,7.2779]
[1720464301964,16.2492,137.45,137.4,7.2779]
[1720464302139,6.0629,137.43,137.38,25.4756]
[1720464302337,6.0629,137.43,137.38,18.1967]
[1720464302545,6.0629,137.43,137.41,7.2773]
[1720464302740,6.0629,137.43,137.39,7.2783]
[1720464302948,6.0629,137.43,137.38,7.2789]
[1720464303151,6.0629,137.43,137.39,7.2785]
[1720464303448,0.17,137.42,137.39,7.2785]
[1720464303861,0.17,137.42,137.4,7.278]
[1720464304056,6.0629,137.43,137.4,7.278]
[1720464304258,6.0629,137.43,137.34,36.4037]
[1720464304259,6.0629,137.43,137.41,7.2774]